[Event "5th Baskent University Open 2022"]
[Site "Ankara"]
[Date "2022.07.06"]
[Round "8.21"]
[White "Yurtoglu, Osman Talha"]
[Black "Metin, Enis"]
[Result "1/2-1/2"]
[ECO "C49"]
[WhiteElo "1923"]
[BlackElo "1750"]
[Annotator "TA"]
[PlyCount "92"]
[EventDate "2022.07.02"]
[EventType "swiss"]
[EventCountry "TUR"]
[SourceTitle "playchess.com"]
[Source "ChessBase"]
[SourceQuality "1"]
[TimeControl "5400+30"]

{[%evp 15,92,14,12,-7,-2,-25,-10,-41,55,46,50,50,50,51,36,45,269,285,447,441,422,437,420,91,92,95,139,134,141,139,131,134,177,113,127,105,129,125,126,50,96,98,95,94,95,95,116,91,91,91,91,91,135,91,135,135,135,135,135,135,135,135,135,135,135,135,135,135,135,135,135,95,95,95,95,95,95,66,66]} 1. e4 {[%emt 0:01:00]} e5 {[%emt 0:01:00]} 2. Nc3 {[%emt 0:00:00]} Nf6 {[%emt 0:00:00]} 3. Nf3 {[%emt 0:02:00]} Nc6 {[%emt 0:00:00]} 4. Bb5 {[%emt 0:00:30]} Bb4 {[%emt 0:00:30]} 5. O-O {[%emt 0:00:30]} O-O {[%emt 0:00:30]} 6. d3 {[%emt 0:00:30]} d6 {[%emt 0:00:00]} 7. Bg5 {[%emt 0:00:00]} Bxc3 {[%emt 0:00:00]} 8. bxc3 {[%emt 0:00:00]} Qe7 {[%emt 0:00:00]} 9. Ne1 {[%emt 0:00:30] [#] C49: Four Knights: 4 Bb5 Bb4.} h6 $146 {[%emt 0:00:00]} ({Predecessor:} 9... Nd8 10. f4 h6 11. fxe5 hxg5 12. exf6 gxf6 13. Bc4 Kg7 14. Nf3 Ne6 15. Rb1 Nf4 16. Nd4 c6 {0-1 (35) Vrchotka,J (2059)-Nemeth,A (2026) Zalakaros 2012}) 10. Bc1 {[%emt 0:03:30]} Nd8 {[%emt 0:03:30]} 11. f4 {[%emt 0:04:30] The position is equal.} d5 {[%emt 0:02:30]} (11... c6 $15 12. Bc4 d5) 12. fxe5 $14 {[%emt 0:04:30]} Qxe5 {[%emt 0:00:30]} 13. d4 {[%emt 0:00:30]} Qxe4 {[%emt 0:00:30] [#]} 14. Rxf6 $1 {[%emt 0:00:30]} gxf6 {[%emt 0:00:30]} 15. Bxh6 {[%emt 0:00:30] This bishop pair is nice.} Re8 $2 {[%emt 0:04:30]} 16. Bxe8 $18 {[%emt 0:00:30]} Qxe8 {[%emt 0:00:30]} (16... Bg4 {was necessary.} 17. Qd3 Qxe8) 17. Qf3 {[%emt 0:00:30][%csl LRd5,LRf6] Intending Qg3+ and mate.} Qe6 {[%emt 0:00:00]} 18. Nd3 {[%emt 0:04:30]} (18. Qg3+ Qg4 $16) 18... Qf5 {[%emt 0:00:00]} 19. Qxf5 {[%emt 0:14:30]} (19. Qg3+ $18 {is more deadly.} Qg6 20. Qh4 (20. Qxc7 Ne6 $14)) 19... Bxf5 $16 {[%emt 0:00:30]} 20. Rf1 {[%emt 0:00:30]} Bg6 {[%emt 0:03:30]} 21. Rxf6 {[%emt 0:00:30]} Kh7 {[%emt 0:00:00]} 22. Bf4 {[%emt 0:04:30] 0x0.001ebe4f3080dp-1022s more active pieces. The black rooks are badly placed.} Ne6 {[%emt 0:00:00]} 23. Be5 {[%emt 0:00:00]} c5 {[%emt 0:04:30]} 24. Nf4 {[%emt 0:05:00]} (24. Nxc5 Nxc5 25. dxc5 Re8 $16) ({White should play} 24. dxc5 $18 Re8 25. Bd4) 24... Nxf4 {[%emt 0:01:30]} 25. Rxf4 {[%emt 0:00:30][%mdl 4096] Endgame KRB-KRB} Kh6 {[%emt 0:01:30]} 26. g4 {[%emt 0:08:30]} cxd4 {[%emt 0:00:30] [#]} 27. Bxd4 {[%emt 0:05:30]} ({Resist} 27. cxd4 Rc8 $14) ({Don't play} 27. Rxd4 Bxc2 28. Bf4+ (28. Rxd5 Kg5 $14) 28... Kg6 $14) (27. h4 $1 $16 {[%cal Rh4h5]}) 27... Re8 {[%emt 0:00:30]} (27... Kg5 $14 {deserves consideration.} 28. Be3 Kh4) 28. Kf2 {[%emt 0:02:30]} ({But not} 28. Bxa7 $6 Kg5 29. Rb4 Re2 $11) 28... Re4 {[%emt 0:03:30]} 29. Rxe4 {[%emt 0:01:30]} Bxe4 {[%emt 0:00:30]} 30. Bxa7 {[%emt 0:00:30]} Bxc2 {[%emt 0:00:00] KB-KB} 31. h4 {[%emt 0:00:00][%cal Bh2h4,Bh4h5][%mdl 32]} Bd1 {[%emt 0:00:00]} 32. Kg3 {[%emt 0:00:00]} Kg6 {[%emt 0:00:00]} 33. Kf4 {[%emt 0:00:30]} Be2 {[%emt 0:00:00]} 34. Be3 {[%emt 0:00:30]} Bd1 {[%emt 0:00:30]} 35. h5+ {[%emt 0:01:30]} Kh7 {[%emt 0:00:30]} 36. Kf5 {[%emt 0:01:30]} Be2 {[%emt 0:01:30]} 37. h6 {[%emt 0:00:00]} Kg8 {[%emt 0:00:30]} 38. g5 {[%emt 0:00:00]} Bd3+ {[%emt 0:00:00]} 39. Ke5 {[%emt 0:00:30]} Bc4 {[%emt 0:00:00]} 40. a4 {[%emt 0:00:30][%cal Ba2a4,Ba4a5][%mdl 32]} Kh7 {[%emt 0:00:30]} 41. Kf6 {[%emt 0:00:30]} Kg8 {[%emt 0:00:00]} 42. a5 {[%emt 0:00:30]} Bd3 {[%emt 0:00:00]} 43. h7+ {[%emt 0:01:30]} Kxh7 {[%emt 0:02:30]} 44. Kxf7 {[%emt 0:00:30]} Bc2 {[%emt 0:00:00]} 45. Ke6 {[%emt 0:00:30]} Bb3 {[%emt 0:00:00] ( -> ...d4+)} 46. Kd6 {[%emt 0:00:30] Hoping for Kc7.} Bc4 $1 {[%emt 0:00:00] Weighted Error Value: White=0.22 (precise) /Black=0.31} 1/2-1/2

[Event "5th Baskent University Open 2022"]
[Site "Ankara"]
[Date "2022.07.06"]
[Round "8.22"]
[White "Turkmen, Ataberk"]
[Black "Ercan, Mehmet Fahri"]
[Result "1-0"]
[ECO "C26"]
[WhiteElo "1935"]
[BlackElo "1736"]
[Annotator "TA"]
[PlyCount "147"]
[EventDate "2022.07.02"]
[EventType "swiss"]
[EventCountry "TUR"]
[SourceTitle "playchess.com"]
[Source "ChessBase"]
[SourceQuality "1"]
[TimeControl "5400+30"]

{[%evp 9,147,-8,12,-19,0,-6,29,-28,54,37,44,40,73,73,78,54,68,68,68,68,68,72,94,98,128,104,149,141,165,69,135,95,125,125,127,114,123,110,132,102,188,183,188,133,131,99,102,99,135,149,136,113,107,98,100,94,111,102,113,102,127,127,150,110,128,68,99,72,89,90,113,77,102,116,132,117,132,132,141,140,125,110,224,120,329,333,384,372,414,326,318,323,311,258,255,257,256,215,304,295,299,263,285,265,264,240,304,290,286,185,206,216,570,575,558,518,585,606,567,524,513,495,704,647,933,909,790,792,812,737,2065,1748,2620,1900,29975,29976,29988,29989,29988,29989]} 1. e4 {[%emt 0:02:00]} e5 {[%emt 0:13:00]} 2. Nc3 {[%emt 0:01:30]} Nc6 {[%emt 0:02:30]} 3. g3 {[%emt 0:00:30]} Nf6 {[%emt 0:00:30]} 4. Bg2 {[%emt 0:00:30]} Bc5 {[%emt 0:00:30]} 5. d3 {[%emt 0:01:30]} h6 {[%emt 0:00:30]} 6. h3 {[%emt 0:00:00] C26: Vienna Game: 2...Nf6, sidelines .} O-O {[%emt 0:00:00]} 7. Nge2 {[%emt 0:00:00]} d6 {[%emt 0:01:00]} 8. O-O {[%emt 0:00:30]} ({White should play} 8. Na4) 8... Be6 {[%emt 0:00:30]} (8... a5 $11) 9. Na4 $1 $14 {[%emt 0:06:30] [#]} Qd7 $146 {[%emt 0:08:30]} ({Predecessor:} 9... Bb6 10. Nxb6 axb6 11. f4 d5 12. f5 Bc8 13. Qe1 dxe4 14. dxe4 Nd4 15. Nxd4 Qxd4+ {1-0 (30) Hong,X (1971)-Yin,M Tianjin 2020}) 10. Kh2 {[%emt 0:02:30]} Nh7 {[%emt 0:03:30]} 11. f4 {[%emt 0:17:30]} f6 {[%emt 0:00:30]} 12. c3 {[%emt 0:06:30] [#] Threatens to win with d4.} Bf7 {[%emt 0:08:30]} 13. d4 $36 {[%emt 0:00:30][%mdl 2048] White has some pressure.} Bb6 {[%emt 0:05:30]} 14. d5 {[%emt 0:06:30]} Ne7 {[%emt 0:01:30]} 15. f5 {[%emt 0:03:30]} Be8 {[%emt 0:02:30]} 16. b3 {[%emt 0:00:30]} Kh8 {[%emt 0:02:30]} 17. g4 {[%emt 0:00:30]} Ng8 {[%emt 0:00:00]} 18. h4 {[%emt 0:00:30]} Qf7 {[%emt 0:00:00]} 19. Nb2 {[%emt 0:01:30]} (19. Nxb6 $18 axb6 20. Ng3) 19... a6 {[%emt 0:04:30]} (19... h5 $14) 20. Nd3 {[%emt 0:03:30]} Rd8 {[%emt 0:01:30]} 21. Ng3 {[%emt 0:01:30]} c6 {[%emt 0:01:30]} 22. c4 {[%emt 0:00:30]} Bd4 {[%emt 0:00:30]} 23. Rb1 {[%emt 0:00:30]} Qe7 {[%emt 0:03:30]} 24. Bf3 {[%emt 0:03:30]} c5 {[%emt 0:01:30]} (24... b5 $16 {was necessary.} 25. a4 Qa7) 25. Kg2 {[%emt 0:00:30]} b5 {[%emt 0:00:00]} 26. Qd2 {[%emt 0:02:30]} ({Better is} 26. Ne2 $18) 26... Rb8 $16 {[%emt 0:00:00]} 27. Bb2 {[%emt 0:04:30]} Bxb2 {[%emt 0:03:30]} 28. Rxb2 {[%emt 0:00:30]} Bf7 {[%emt 0:02:30]} 29. Be2 {[%emt 0:01:30]} Rb7 {[%emt 0:00:30]} 30. Ne1 {[%emt 0:00:30]} Rfb8 {[%emt 0:02:30]} 31. Nf3 {[%emt 0:00:30]} Be8 {[%emt 0:02:30]} 32. Rh1 {[%emt 0:03:30]} bxc4 {[%emt 0:01:30]} 33. Bxc4 {[%emt 0:00:00]} Bb5 {[%emt 0:00:30] Strongly threatening ...Bxc4.} 34. Rc2 {[%emt 0:00:00]} Bxc4 {[%emt 0:00:30]} 35. Rxc4 {[%emt 0:00:30]} Rb4 {[%emt 0:00:30]} 36. Rhc1 {[%emt 0:00:30]} a5 {[%emt 0:03:30]} 37. Ne2 {[%emt 0:00:30]} (37. Ne1 $16) 37... Qa7 {[%emt 0:00:30]} 38. Nc3 {[%emt 0:01:30]} Nf8 {[%emt 0:04:30]} 39. Ne1 {[%emt 0:01:30]} Qa6 {[%emt 0:09:20]} 40. Na4 {[%emt 0:00:30]} Nd7 {[%emt 0:01:14]} 41. Nd3 {[%emt 0:00:30]} R4b7 {[%emt 0:01:26]} 42. Kf3 {[%emt 0:00:30] 0x0.001686218055dp-1022s more active pieces.} Nb6 {[%emt 0:02:18]} 43. Nxb6 {[%emt 0:00:30]} Rxb6 {[%emt 0:00:31]} 44. Ra4 {[%emt 0:00:30]} Rb5 {[%emt 0:00:15]} 45. g5 {[%emt 0:03:30]} Kh7 {[%emt 0:00:21] [#]} (45... Qb7 $16 {is a better defense.}) 46. Rg1 {[%emt 0:00:30]} (46. Nb2 $1 $18) 46... fxg5 $2 {[%emt 0:02:19] A mistake that costs the game.} (46... Qb6 $16) 47. hxg5 $18 {[%emt 0:00:30]} Qa7 {[%emt 0:00:30][%cal Oc5c4]} 48. gxh6 {[%emt 0:00:30]} Nxh6 {[%emt 0:00:30][%cal Oc5c4]} 49. Rg6 {[%emt 0:00:30]} Qe7 {[%emt 0:00:32]} 50. Qh2 {[%emt 0:02:30] Nf2 is the strong threat.} Rf8 {[%emt 0:00:15]} 51. Ke2 {[%emt 0:00:30][%cal Bf3e2,Be2d2,Bd2c2][%mdl 32]} Rf6 {[%emt 0:00:03]} 52. Rg2 {[%emt 0:02:30]} Qf7 {[%emt 0:00:28]} 53. Qg3 {[%emt 0:00:30]} Qh5+ {[%emt 0:00:52]} (53... Ng8 $142 54. Nb2 (54. Nxe5 dxe5 55. Qxe5 Rb4 $15) 54... Rb4) 54. Kd2 {[%emt 0:00:30][%csl Gg2][%cal Rg3g7] Dancing on a razor blade.} Qf7 {[%emt 0:00:37]} 55. Nb2 {[%emt 0:00:30][%cal Bd3b2,Bb2c4,Bc4b6,Bb6c4][%mdl 32]} Rb4 {[%emt 0:00:47]} 56. Nc4 {[%emt 0:02:30]} Rxa4 {[%emt 0:00:30]} 57. bxa4 {[%emt 0:00:00]} Qb7 {[%emt 0:00:00]} 58. Kc2 {[%emt 0:01:00]} ({Not} 58. Nxa5 Qb4+ 59. Kc1 g6 $17) 58... Qd7 {[%emt 0:00:33]} 59. Nb6 {[%emt 0:01:10]} ({Stronger than} 59. Nxa5 Qxa4+ 60. Kc1 g6 $17) 59... Qe7 {[%emt 0:02:25]} 60. Qg5 {[%emt 0:00:20] Inhibits g6.} Rf7 $2 {[%emt 0:00:09]} (60... Kh8 {is tougher.} 61. a3 Qa7) 61. Qxe7 {[%emt 0:01:06]} Rxe7 {[%emt 0:00:01][%mdl 4096] Endgame KRN-KRN} 62. Rg6 {[%emt 0:00:32]} Nf7 {[%emt 0:00:24]} 63. Nc4 $1 {[%emt 0:00:51][%csl LRa5,LRd6]} Rd7 {[%emt 0:01:56]} 64. Kc3 {[%emt 0:00:20]} Rb7 {[%emt 0:02:23]} 65. a3 {[%emt 0:01:33]} Rb1 {[%emt 0:00:22]} (65... Rd7 $142 66. Nxa5 Nh8) 66. Nxd6 {[%emt 0:00:42]} Nxd6 {[%emt 0:00:30]} 67. Rxd6 {[%emt 0:00:00] KR-KR} Rc1+ {[%emt 0:00:00]} 68. Kd3 {[%emt 0:00:43]} Ra1 {[%emt 0:00:05]} 69. Kc4 {[%emt 0:02:41]} Rxa3 {[%emt 0:00:13]} 70. Kxc5 {[%emt 0:00:20]} Rxa4 {[%emt 0:00:12]} 71. Re6 {[%emt 0:00:00]} Rxe4 {[%emt 0:03:04]} 72. d6 {[%emt 0:00:00][%cal Bd5d6,Bd6d7][%mdl 32] White mates.} a4 {[%emt 0:00:30]} 73. d7 {[%emt 0:00:27]} Rd4 {[%emt 0:00:00]} 74. Rd6 {[%emt 0:00:00] Weighted Error Value: White=0.22 (precise) /Black=0.29 (precise)} 1-0

[Event "5th Baskent University Open 2022"]
[Site "Ankara"]
[Date "2022.07.06"]
[Round "8.23"]
[White "Yildiz, Serdar Murat"]
[Black "Buke, Furkan"]
[Result "1/2-1/2"]
[ECO "B66"]
[WhiteElo "1736"]
[BlackElo "1979"]
[Annotator "TA"]
[PlyCount "60"]
[EventDate "2022.07.02"]
[EventType "swiss"]
[EventCountry "TUR"]
[SourceTitle "playchess.com"]
[Source "ChessBase"]
[SourceQuality "1"]
[TimeControl "5400+30"]

{[%evp 21,60,22,46,30,43,17,39,-39,0,0,0,0,0,0,69,0,156,166,216,107,225,201,177,124,132,143,324,180,175,0,0,-15,104,86,106,16,43,0,39,-89,7]} 1. e4 {[%emt 0:01:00]} c5 {[%emt 0:01:00]} 2. Nf3 {[%emt 0:00:00]} d6 {[%emt 0:00:30]} 3. d4 {[%emt 0:00:00]} cxd4 {[%emt 0:00:30]} 4. Nxd4 {[%emt 0:00:30]} Nf6 {[%emt 0:00:30]} 5. Nc3 {[%emt 0:00:30]} Nc6 {[%emt 0:00:00]} 6. Bg5 {[%emt 0:00:00]} e6 {[%emt 0:00:00]} 7. Qd2 {[%emt 0:00:00]} a6 {[%emt 0:00:00]} 8. O-O-O {[%emt 0:00:00]} h6 {[%emt 0:00:00]} 9. Nxc6 {[%emt 0:00:00]} bxc6 {[%emt 0:00:30]} 10. Bf4 {[%emt 0:00:30]} d5 {[%emt 0:02:30]} 11. Qe3 {[%emt 0:00:00]} Be7 {[%emt 0:12:30]} 12. Be2 {[%emt 0:05:00] B66: Sicilian: Richter-Rauzer: 7...a6 8 0-0-0 h6.} O-O {[%emt 0:09:30]} 13. Kb1 {[%emt 0:10:30]} Nd7 {[%emt 0:06:30]} 14. e5 {[%emt 0:16:30] [#]} (14. h4 $1 $14) 14... Qb6 $146 {[%emt 0:06:30]} ({Predecessor:} 14... Rb8 15. Qg3 Bg5 16. Bxg5 Qxg5 17. f4 Qe7 18. Rd3 a5 19. Rf3 Rb4 20. Rhf1 Nc5 {0-1 (36) Schnider,G (2141)-Mohandesi,S (2324) Graz 2002}) 15. Qg3 {[%emt 0:01:30] And now Bxh6 would win.} Rb8 {[%emt 0:12:30][%csl Gb8][%cal Rb6b2]} 16. b3 {[%emt 0:02:30] Active counter play!} Kh8 $1 {[%emt 0:11:30]} 17. Qh3 {[%emt 0:05:30][%cal Of4h6] Hoping for Bxh6!} Qb4 {[%emt 0:00:30] [#]} ({Black should play} 17... Kg8 $11) 18. Qe3 {[%emt 0:22:30]} ({White should try} 18. Bxh6 $1 $14 Qh4 19. Qxh4 Bxh4 20. Be3) 18... g5 $2 {[%emt 0:06:30]} (18... Bc5 $11 19. Qg3 Bd4) 19. Bg3 $16 {[%emt 0:05:30][%cal Oh2h4] Black must now prevent h4!} Qc5 {[%emt 0:02:30]} (19... f5 {was called for.} 20. exf6 Bxf6) 20. Qd3 {[%emt 0:04:30]} (20. Qd2 $1 $18 {and White stays clearly on top.}) 20... Kg7 {[%emt 0:06:30]} (20... Rg8 $16) 21. h4 $18 {[%emt 0:00:30] hxg5 is the strong threat.} g4 {[%emt 0:09:04]} 22. Bf4 {[%emt 0:04:30]} (22. Bxg4 $18 {Strongly threatening Bh5.} Qb4 23. Bh5) 22... h5 {[%emt 0:03:10]} 23. f3 {[%emt 0:04:46]} Qb4 $2 {[%emt 0:04:21]} (23... Rb4 $16 {was necessary.} 24. Be3 Qa5) 24. Qd2 {[%emt 0:01:20]} (24. Bd2 $142) 24... f5 {[%emt 0:01:55]} 25. Bh6+ $2 {[%emt 0:00:57]} (25. exf6+ $1 $18 Bxf6 26. Bxb8 Nxb8 27. Ne4 $1 {[%mdl 512]} Qxd2 28. Nxd2) 25... Kh7 $11 {[%emt 0:00:53][%cal Od7e5]} 26. Bxf8 {[%emt 0:00:07]} Nxf8 {[%emt 0:00:00]} (26... Bxf8 $11 27. f4 Bh6) 27. fxg4 $16 {[%emt 0:00:30]} hxg4 {[%emt 0:00:00] [#]} 28. Bd3 {[%emt 0:03:38]} (28. Rhf1 $1 $16) 28... Ng6 {[%emt 0:00:51]} 29. Rhe1 {[%emt 0:02:26]} a5 {[%emt 0:01:34]} 30. Ne2 {[%emt 0:04:38]} (30. h5 $14 {stays ahead.} Nh4 31. Rh1) 30... Nxe5 {[%emt 0:02:40] Blacks defense is rewarded with a draw.  Weighted Error Value: White=0.55/Black=0.49} ({Better is} 30... Qxd2 $17 31. Rxd2 Bxh4) 1/2-1/2

[Event "5th Baskent University Open 2022"]
[Site "Ankara"]
[Date "2022.07.06"]
[Round "8.24"]
[White "Saka, Omer"]
[Black "Ozgun, Yigit Deniz"]
[Result "1/2-1/2"]
[ECO "A49"]
[WhiteElo "1832"]
[BlackElo "1567"]
[Annotator "NA RC COMBH"]
[PlyCount "92"]
[EventDate "2022.07.02"]
[EventType "swiss"]
[EventCountry "TUR"]
[SourceTitle "playchess.com"]
[Source "ChessBase"]
[SourceQuality "1"]
[TimeControl "5400+30"]

1. d4 {[%emt 0:01:00]} Nf6 {[%emt 0:01:00]} 2. Nf3 {[%emt 0:00:30]} g6 {[%emt 0:01:30]} 3. g3 {[%emt 0:01:30]} Bg7 {[%emt 0:00:30]} 4. Bg2 {[%emt 0:00:30]} O-O {[%emt 0:00:00]} 5. O-O {[%emt 0:00:00]} d6 {[%emt 0:00:00]} 6. b3 {[%emt 0:00:00]} c6 {[%emt 0:04:30]} 7. Bb2 {[%emt 0:03:30]} a5 {[%emt 0:01:30]} 8. c4 {[%emt 0:04:30]} Bf5 {[%emt 0:03:30]} 9. Nbd2 {[%emt 0:02:30]} Ne4 {[%emt 0:00:30]} 10. Nh4 {[%emt 0:02:30]} Nxd2 {[%emt 0:00:30]} 11. Qxd2 {[%emt 0:00:00]} Bd7 {[%emt 0:06:30]} 12. e4 {[%emt 0:14:00]} Qc7 {[%emt 0:00:30]} 13. f4 {[%emt 0:03:30]} c5 {[%emt 0:01:30]} 14. d5 {[%emt 0:01:30]} b5 {[%emt 0:04:30]} 15. Bxg7 {[%emt 0:03:30]} Kxg7 {[%emt 0:01:30]} 16. Qc3+ {[%emt 0:00:30]} Kg8 {[%emt 0:00:30]} 17. e5 {[%emt 0:01:30]} a4 {[%emt 0:03:30]} 18. e6 {[%emt 0:05:30]} Be8 {[%emt 0:04:30]} 19. exf7+ {[%emt 0:04:30]} Bxf7 {[%emt 0:00:30]} 20. Rfe1 {[%emt 0:03:30]} axb3 {[%emt 0:00:00]} 21. axb3 {[%emt 0:01:30]} Na6 {[%emt 0:07:00]} 22. f5 {[%emt 0:02:30]} bxc4 {[%emt 0:01:30]} 23. fxg6 {[%emt 0:01:30]} hxg6 {[%emt 0:00:00]} 24. bxc4 {[%emt 0:00:30]} Qd7 {[%emt 0:03:00]} 25. Re6 {[%emt 0:07:30]} Nc7 {[%emt 0:08:30]} 26. Rxa8 {[%emt 0:04:30]} Nxa8 {[%emt 0:00:30]} 27. Bh3 {[%emt 0:04:30]} Qb7 {[%emt 0:00:30]} 28. Qe1 {[%emt 0:08:33]} Bxe6 {[%emt 0:03:30]} 29. Qxe6+ {[%emt 0:00:30]} Rf7 {[%emt 0:00:30]} 30. Qxg6+ {[%emt 0:00:30]} Kf8 {[%emt 0:00:30]} 31. Be6 {[%emt 0:00:30]} Rg7 {[%emt 0:00:30]} 32. Qf5+ {[%emt 0:00:30]} Ke8 {[%emt 0:00:30]} 33. Ng6 {[%emt 0:00:49]} Rxg6 {[%emt 0:00:00]} 34. Qxg6+ {[%emt 0:01:14]} Kd8 {[%emt 0:00:00]} 35. Qf5 {[%emt 0:00:24]} Nc7 {[%emt 0:00:00]} 36. h4 {[%emt 0:04:07]} Ne8 {[%emt 0:01:00]} 37. g4 {[%emt 0:00:53]} Qb4 {[%emt 0:00:30]} 38. Qf2 {[%emt 0:00:30]} Qxc4 {[%emt 0:00:30]} 39. g5 {[%emt 0:00:30]} Qd3 {[%emt 0:00:30]} 40. Kg2 {[%emt 0:00:30]} Qe4+ {[%emt 0:00:00]} 41. Kg3 {[%emt 0:05:40]} Kc7 {[%emt 0:04:00]} 42. Qf4 {[%emt 0:02:32]} Qe1+ {[%emt 0:00:30]} 43. Kg4 {[%emt 0:00:31]} Qd1+ {[%emt 0:01:30]} 44. Qf3 {[%emt 0:01:39]} Qd4+ {[%emt 0:01:30]} 45. Qf4 {[%emt 0:01:00]} Qd1+ {[%emt 0:00:30]} 46. Qf3 {[%emt 0:01:39]} Qd4+ {[%emt 0:00:30]} 1/2-1/2

[Event "5th Baskent University Open 2022"]
[Site "Ankara"]
[Date "2022.07.07"]
[Round "9.1"]
[White "Aliyev, Elnur"]
[Black "Rasulov, Vugar"]
[Result "1/2-1/2"]
[ECO "A30"]
[WhiteElo "2142"]
[BlackElo "2458"]
[Annotator "TA"]
[PlyCount "39"]
[EventDate "2022.07.02"]
[EventType "swiss"]
[EventCountry "TUR"]
[SourceTitle "playchess.com"]
[Source "ChessBase"]
[SourceQuality "1"]
[TimeControl "5400+30"]

{[%evp 20,22,44,44,53]} 1. Nf3 {[%emt 0:01:00]} Nf6 {[%emt 0:02:00]} 2. g3 {[%emt 0:00:30]} g6 {[%emt 0:00:30]} 3. b3 {[%emt 0:00:30]} Bg7 {[%emt 0:00:00]} 4. Bb2 {[%emt 0:00:00]} b6 {[%emt 0:00:00]} 5. Bg2 {[%emt 0:00:00]} Bb7 {[%emt 0:00:30]} 6. c4 {[%emt 0:00:30]} O-O {[%emt 0:00:30]} 7. O-O {[%emt 0:00:30]} c5 {[%emt 0:00:30]} 8. Nc3 {[%emt 0:00:30]} Na6 {[%emt 0:00:30]} 9. d4 {[%emt 0:00:30]} cxd4 {[%emt 0:00:30]} 10. Nxd4 {[%emt 0:00:00]} Bxg2 {[%emt 0:00:00]} 11. Kxg2 {[%emt 0:00:00]} Nc5 {[%emt 0:00:00] [#] A30: Symmetrical English: Double Fianchetto and Hedgehog.} {Predecessor:} 12. f3 $146 a6 13. e4 e6 14. b4 Nb7 15. Rc1 Rc8 16. Qe2 a5 17. a3 Qe7 18. e5 Ne8 19. Na4 axb4 20. Nxb6 {1-0 (42) Dobre,C (2358)-Deac,B (2402) Calimanesti 2015} 1/2-1/2

[Event "5th Baskent University Open 2022"]
[Site "Ankara"]
[Date "2022.07.07"]
[Round "9.2"]
[White "Atabayev, Saparmyrat"]
[Black "Annaberdiev, Meilis"]
[Result "0-1"]
[ECO "B08"]
[WhiteElo "2447"]
[BlackElo "2484"]
[Annotator "TA"]
[PlyCount "72"]
[EventDate "2022.07.02"]
[EventType "swiss"]
[EventCountry "TUR"]
[SourceTitle "playchess.com"]
[Source "ChessBase"]
[SourceQuality "1"]
[TimeControl "5400+30"]

{[%evp 12,72,15,8,38,27,27,28,25,20,29,35,26,8,35,0,15,14,36,7,2,0,54,46,79,83,78,78,94,99,90,85,91,-15,-14,-177,-171,-375,-389,-362,-362,-445,-433,-428,-426,-487,-482,-555,-549,-1501,-1007,-5269,-806,-865,-512,-791,-816,-816,-796,-764,-747,-682,-614]} 1. e4 {[%emt 0:01:00] Har Zvi,R} d6 {[%emt 0:01:00]} 2. d4 {[%emt 0:00:30][%cal Bd2d4,Bd4c5,Bc5d6][%mdl 32]} Nf6 {[%emt 0:00:00]} 3. Nc3 {[%emt 0:00:00]} g6 {[%emt 0:00:00]} 4. Nf3 {[%emt 0:00:00]} Bg7 {[%emt 0:00:30]} 5. h3 {[%emt 0:00:30]} O-O {[%emt 0:00:30]} 6. Be2 {[%emt 0:00:30]} c5 {[%emt 0:00:00]} 7. dxc5 {[%emt 0:02:30]} Qa5 {[%emt 0:00:00] Hoping for ...Nxe4. B08: Pirc Defence: Classical System.} 8. cxd6 {[%emt 0:03:30]} Nxe4 $1 {[%emt 0:00:30]} 9. dxe7 {[%emt 0:00:30]} Re8 {[%emt 0:00:00] White has an edge.} 10. O-O {[%emt 0:02:30]} Nxc3 {[%emt 0:00:00]} 11. bxc3 {[%emt 0:00:30]} Nc6 {[%emt 0:00:30]} 12. Bc4 {[%emt 0:04:30]} Rxe7 {[%emt 0:00:30]} (12... Qxc3 $2 13. Bxf7+ $1 {[%mdl 512]} (13. Qd5 $2 Be6 $19) 13... Kxf7 14. Qd5+ Kxe7 15. Ng5 $18 (15. Rd1 $2 Be6 $19)) 13. Bg5 {[%emt 0:01:30]} (13. Re1 $5 {[%cal Re1e7]}) 13... Re8 {[%emt 0:00:30] [#]} 14. Rb1 $146 {[%emt 0:04:30][%mdl 128] Threatens to win with Re1. White has some attack.} ({Predecessor:} 14. Re1 Bf5 15. Rb1 Rxe1+ 16. Qxe1 Qc5 17. Qe2 Na5 18. Bd3 Bxd3 19. cxd3 Qxc3 20. d4 {½-½ (31) McDonald,N (2490)-Dunnington,A (2445) London 1997 CBM 060 [Har Zvi,R]}) 14... Qc7 {[%emt 0:07:30]} 15. Qd2 {[%emt 0:02:30]} Na5 $1 {[%emt 0:01:30]} 16. Bb5 {[%emt 0:05:30]} Nc6 {[%emt 0:07:30]} (16... Bxc3 $11 17. Bf4 Qc5) 17. Bf4 $14 {[%emt 0:02:30]} Qa5 {[%emt 0:09:30][%csl LRa2,LRc3]} 18. Bc4 $1 {[%emt 0:21:30]} Bxc3 {[%emt 0:10:30]} 19. Qd3 {[%emt 0:03:30] aiming for Rb5.} Bf6 {[%emt 0:20:30]} 20. Rfe1 $1 {[%emt 0:01:30]} Rxe1+ {[%emt 0:12:30]} 21. Rxe1 {[%emt 0:00:30] Re8+ is the strong threat.} ({Don't do} 21. Nxe1 Nd4 $14) 21... Bf5 {[%emt 0:00:00] [#]} 22. Qb3 {[%emt 0:00:30]} (22. Bxf7+ $1 $16 Kg7 {[#]} 23. Qe3 $1) 22... Nd4 $11 {[%emt 0:00:00]} 23. Bxf7+ {[%emt 0:09:30] Loses the game.} (23. Qe3 $1 $11) 23... Kg7 $19 {[%emt 0:00:30]} 24. Bh6+ $2 {[%emt 0:02:30]} ({Avoid the trap} 24. Qb1 $2 Bxc2 25. Qxb7 Nxf3+ 26. gxf3 Qxe1+ $19) (24. Qe3 Kxf7 25. Nxd4 Bxd4 26. Qb3+ Kf6 27. Re2) 24... Kxh6 {[%emt 0:00:30]} 25. Qe3+ {[%emt 0:00:30]} g5 {[%emt 0:00:30]} 26. Rd1 {[%emt 0:03:30]} Nxf3+ {[%emt 0:10:02] Black is clearly winning.} 27. Qxf3 {[%emt 0:00:00]} Rf8 {[%emt 0:00:04]} 28. Bb3 {[%emt 0:04:00]} Bg6 {[%emt 0:00:46]} 29. Qxb7 {[%emt 0:08:00] [#]} Bd4 $1 {[%emt 0:02:30][%cal Of8f2][%mdl 512]} 30. Qe7 {[%emt 0:00:16]} (30. Qd5 Bxf2+) 30... Bxf2+ {[%emt 0:03:01]} 31. Kh1 {[%emt 0:00:29]} Bc5 {[%emt 0:01:05]} (31... Re8 $142 32. Qxe8 Bxe8) 32. Qe5 {[%emt 0:00:25]} Bb6 {[%emt 0:03:33]} 33. Rd5 {[%emt 0:02:03]} (33. Qxa5 $142 Bxa5 34. Rd7) 33... Rf1+ {[%emt 0:00:42]} 34. Kh2 {[%emt 0:00:30]} Bg1+ {[%emt 0:00:30]} 35. Kg3 {[%emt 0:00:30]} Qe1+ {[%emt 0:00:00]} 36. Qxe1 {[%emt 0:00:00]} Rxe1 {[%emt 0:00:00] Weighted Error Value: White=0.80/Black=0.62} 0-1